bitfinex/quotes_ETHUSD_20241204
["timestamp","ask_amount","ask_price","bid_price","bid_amount"]
[1733336880966,0.02613623,3824.5,3824.1,2.61498]
[1733336881192,0.02613623,3824.5,3824.2,2.61491]
[1733336881333,1.6635,3824.6,3823.9,2.61509]
[1733336881530,1.6635,3824.6,3824.4,2.61478]
[1733336881976,1.6635,3824.6,3823.9,3.3179055]
[1733336882141,0.02613623,3824.5,3823.8,2.61514]
[1733336882345,8.79,3824.4,3823.2,0.55]
[1733336882874,8.79,3824.4,3824.0,2.61505]
[1733336883075,8.79,3824.4,3824.3,2.61485]
[1733336883486,10.2919,3824.4,3824.3,2.61485]
[1733336883632,8.79,3824.4,3824.3,2.61485]
[1733336883833,1.5552,3824.3,3823.2,1.6294]
[1733336884058,0.02613623,3824.2,3823.6,2.61532]
[1733336884236,8.81613623,3824.2,3823.6,2.61532]
[1733336884454,8.79,3824.1,3822.9,1.535]
[1733336884690,0.02613623,3824.0,3822.9,1.535]
[1733336884978,8.79,3824.1,3823.5,2.61536]
[1733336885134,8.79,3824.1,3823.8,2.61516]
[1733336885336,8.79,3824.1,3823.9,2.61511]
[1733336885576,8.79,3824.1,3822.9,4.64712487]
[1733336885743,8.79,3824.1,3823.0,3.16574]
[1733336885943,8.79,3824.1,3823.6,2.61528]
[1733336886297,8.79,3824.1,3823.1,0.54970649]
[1733336886298,0.02613623,3824.0,3823.8,2.61519]
[1733336886685,0.02613623,3824.0,3823.3,2.61554]
[1733336886880,0.02613623,3824.0,3823.0,2.61568]
[1733336886881,1.6562,3824.0,3823.0,2.61568]
[1733336887085,8.79,3823.7,3822.9,2.61579]
[1733336887297,0.02613623,3823.6,3822.9,2.61579]
[1733336887493,0.02613623,3823.6,3821.9,1.5027]
[1733336887494,8.79,3823.4,3821.9,1.5027]
[1733336887815,0.02613623,3823.3,3822.2,2.61629]
[1733336887985,0.02613623,3823.3,3822.0,0.411925]
[1733336888186,0.02613623,3823.3,3822.6,2.61598]
[1733336889311,2.61608,3822.6,3821.3,2.6169]
[1733336889618,14.70586541,3822.9,3820.8,2.61725]
[1733336889619,4.20426,3822.4,3820.8,2.61725]
[1733336889819,0.02613623,3822.3,3820.8,2.61725]
[1733336890057,0.02613623,3822.3,3819.8,2.72913085]
[1733336890058,1.5614,3821.2,3819.1,2.72913085]
[1733336890178,8.79,3821.1,3819.2,1.5512]
[1733336890379,1.5614,3821.2,3819.2,1.5512]
[1733336890380,10.3514,3821.2,3820.6,2.61738]
[1733336890619,10.3514,3821.2,3819.2,1.5512]
[1733336890620,8.79,3821.1,3820.4,2.61746]
[1733336890920,8.79,3821.1,3819.6,2.61807]
[1733336891071,8.79,3821.1,3820.6,2.61738]
[1733336891269,1.5614,3821.2,3819.8,0.02617429]
[1733336891474,1.5614,3821.7,3820.2,1.5512]
[1733336891722,1.5614,3821.7,3820.9,2.61712]
[1733336891911,1.5614,3821.7,3821.4,2.61682]
[1733336892219,0.52164359,3822.0,3821.0,0.261712]
[1733336892378,8.79,3821.9,3821.0,0.261712]
[1733336892577,8.79,3821.9,3821.6,2.61666]
[1733336893010,8.79,3821.9,3821.4,2.61682]
[1733336893198,8.79,3821.9,3821.0,0.261712]
[1733336893400,8.79,3821.9,3820.0,3.0]
[1733336893401,8.79,3821.9,3820.2,1.57736738]
[1733336893623,9.31164359,3822.0,3821.4,2.61681]
[1733336893914,9.31164359,3822.0,3821.5,2.61677]
[1733336894119,8.79,3821.9,3820.4,2.61752]
[1733336894285,9.31164359,3822.0,3820.5,0.55]
[1733336894487,9.31164359,3822.0,3821.5,2.61676]
[1733336894822,8.79,3821.9,3821.2,2.61692]
[1733336895117,8.79,3821.9,3821.3,2.6169]
[1733336895409,8.79,3821.9,3820.6,0.39764492]
[1733336895410,8.79,3821.9,3821.2,2.61692]
[1733336895571,9.72116436,3821.9,3821.3,2.6169]
[1733336896315,0.02613623,3821.8,3820.6,0.39764492]
[1733336896523,0.02613623,3821.8,3821.2,2.61697]
[1733336896979,2.57729442,3821.7,3820.7,2.61732]
[1733336897317,0.02613623,3821.6,3820.8,2.61722]
[1733336897502,0.02613623,3821.6,3820.2,1.5512]
[1733336897503,0.02613623,3821.6,3820.9,2.61714]
[1733336897716,2.60343065,3821.7,3820.9,2.61714]
[1733336898093,2.57729442,3821.7,3820.5,2.61745]
[1733336898402,2.57729442,3821.7,3820.5,0.416865]
[1733336898627,2.57729442,3821.7,3821.2,2.61694]
[1733336898839,2.56938821,3821.7,3821.0,2.61704]
[1733336899130,2.56938821,3821.7,3821.1,2.61704]
[1733336899908,2.56938821,3821.7,3821.2,2.61696]
[1733336900106,8.79,3821.6,3820.5,0.416865]
[1733336900314,9.92593882,3821.5,3821.4,2.61684]
[1733336900525,8.79,3821.5,3821.4,2.61684]
[1733336901417,0.52164359,3822.0,3821.9,2.61649]
[1733336901941,1.5103,3821.9,3821.1,2.61699]
[1733336902124,1.5103,3821.9,3820.2,5.87834924]
[1733336902125,0.02613623,3821.8,3820.9,2.61718]
[1733336902299,0.02613623,3821.8,3820.8,2.61721]
[1733336902499,0.20580798,3821.7,3820.9,2.61711]
[1733336903040,2.24805,3821.6,3821.5,2.61677]
[1733336903198,1.5103,3821.9,3821.8,2.61656]
[1733336904103,0.52104764,3822.2,3822.1,2.61636]
[1733336904445,0.52104764,3822.2,3821.0,2.61711]
[1733336904605,0.52104764,3822.2,3822.1,2.61636]
[1733336904802,2.24805,3822.7,3822.6,2.61602]
[1733336905018,1.35583434,3823.6,3823.2,2.61559]
[1733336905019,1.617,3823.3,3823.2,2.61559]
[1733336905229,1.617,3823.3,3822.9,2.61579]
[1733336905526,1.617,3823.3,3822.1,0.523288]
[1733336905527,1.617,3823.8,3823.3,2.61553]
[1733336906162,1.617,3823.8,3822.1,0.78828621]
[1733336906163,1.617,3823.8,3823.5,2.61538]
[1733336906450,1.617,3823.8,3822.1,0.78828621]
[1733336906753,1.617,3823.8,3823.3,2.61547]
[1733336906924,0.55,3823.7,3823.3,2.61547]
[1733336907452,0.55,3823.7,3823.1,2.61566]
[1733336907618,0.55,3823.7,3822.2,0.23510862]
[1733336907619,0.02613623,3823.6,3822.2,0.23510862]
[1733336908251,0.02613623,3823.6,3822.6,2.61597]
[1733336908580,0.02613623,3823.6,3822.2,0.23510862]
[1733336908715,0.02613623,3823.6,3822.7,2.61592]
[1733336909122,0.02613623,3823.6,3822.9,2.61581]
[1733336909316,0.57613623,3823.7,3822.7,2.61594]
[1733336909834,0.57613623,3823.7,3822.6,2.61599]
[1733336910953,0.57613623,3823.7,3822.5,2.61608]
[1733336911153,0.57613623,3823.7,3822.0,1.5628]
[1733336911154,0.55,3823.5,3822.0,1.5628]
[1733336911357,0.55,3823.5,3820.4,0.1]
[1733336911358,0.02613623,3823.4,3821.5,1.5834]
[1733336911558,0.02613623,3823.4,3822.1,2.61635]
[1733336911759,0.02613623,3823.4,3822.2,2.61627]
[1733336911760,0.55,3822.9,3822.2,2.61627]
[1733336911945,0.55,3822.9,3822.3,0.261627]
[1733336912260,0.55,3823.3,3822.5,2.61608]
[1733336912459,0.57613623,3823.3,3821.8,0.26459282]
[1733336912708,1.6644,3823.6,3821.6,2.6167]
[1733336912709,0.55,3823.5,3822.7,2.61588]
[1733336913158,0.55,3823.5,3822.5,2.61607]
[1733336913705,1.6644,3823.1,3821.5,1.5834]
[1733336913846,1.6644,3823.1,3819.6,0.1]
[1733336913847,0.55,3822.7,3820.7,2.61732]
[1733336914047,0.02613623,3822.6,3821.2,2.61695]
[1733336914283,0.02613623,3822.6,3820.6,0.51646114]
[1733336914493,0.55,3822.7,3820.9,2.61714]
[1733336914494,0.57613623,3822.7,3820.9,2.61714]
[1733336914781,0.57613623,3822.7,3821.5,2.61676]
[1733336914782,0.996245,3822.7,3821.5,2.61676]
[1733336914979,0.55,3822.5,3821.5,2.61676]
[1733336915654,0.55,3822.5,3821.4,2.61677]
[1733336916147,0.55,3822.5,3821.6,2.61669]
[1733336916351,0.55,3822.5,3821.1,1.92157662]
[1733336916548,0.55,3822.7,3821.5,2.61677]
[1733336916863,1.07184966,3822.7,3821.5,2.61673]
[1733336917169,1.07184966,3822.7,3821.2,0.21832906]
[1733336917371,1.07184966,3822.7,3821.6,2.61665]
[1733336917557,1.07184966,3822.7,3821.2,2.83529906]
[1733336917760,1.07184966,3822.7,3821.6,2.61665]
[1733336917962,1.07184966,3822.7,3821.7,2.61659]
[1733336917963,0.55,3822.7,3821.7,2.61659]
[1733336918790,0.55,3822.7,3821.3,0.47568757]
[1733336918993,0.55,3822.7,3821.3,2.61691]
[1733336919153,0.55,3822.7,3821.5,2.61673]
[1733336919352,0.55,3822.7,3821.6,2.61664]
[1733336919686,0.55,3822.7,3821.7,2.61662]
[1733336921266,0.55,3822.7,3821.2,0.21832906]
[1733336921594,0.55,3822.7,3821.9,2.61649]
[1733336921959,0.55,3822.7,3821.4,2.61684]
[1733336922297,0.55,3822.7,3821.8,2.61653]
[1733336923511,0.55,3822.7,3821.9,2.61647]
[1733336923653,0.55,3822.7,3821.9,2.61644]
[1733336924091,0.55,3822.7,3821.3,0.47570157]
[1733336924292,0.55,3822.7,3821.9,2.61643]
[1733336924500,1.6644,3822.8,3821.3,2.61691]
[1733336924658,3.19210623,3822.7,3821.2,0.21832906]
[1733336924995,3.19210623,3822.7,3820.6,3.13380114]
[1733336924996,0.55,3822.3,3820.7,1.6568]
[1733336925158,0.02613623,3822.2,3820.8,2.61725]
[1733336925695,0.02613623,3822.2,3821.2,2.61696]
[1733336925856,0.02613623,3822.2,3820.7,1.6568]
[1733336926057,1.5966,3822.1,3821.1,2.61699]
[1733336926278,1.5966,3822.1,3821.1,2.878689]
[1733336927086,1.5966,3822.1,3821.3,2.6169]
[1733336927269,1.5966,3822.1,3821.1,0.261699]
[1733336928070,1.5966,3822.1,3821.1,2.878739]
[1733336928269,1.86673833,3822.1,3821.1,2.61704]
[1733336929158,1.86673833,3822.1,3820.9,2.61712]
[1733336929794,0.02613623,3822.0,3820.9,2.61712]
[1733336930000,0.02613623,3822.0,3820.6,0.51646114]
[1733336930001,0.57613623,3822.0,3820.6,3.13379114]
[1733336930211,0.55,3821.7,3820.3,1.5055]
[1733336930362,1.572,3821.5,3820.5,2.61739]
[1733336930893,1.572,3821.5,3819.9,1.5055]
[1733336930894,1.572,3821.5,3820.6,2.61735]
[1733336931267,1.572,3821.5,3820.3,2.61752]
[1733336931478,1.572,3821.5,3820.4,2.879262]
[1733336931672,1.572,3821.5,3820.4,0.261752]
[1733336931673,0.02613623,3821.4,3820.4,0.261752]
[1733336932060,0.57613623,3821.4,3820.4,0.261752]
[1733336932259,0.57613623,3821.4,3820.1,2.61771]
[1733336932659,0.57613623,3821.4,3819.9,4.5055]
[1733336932994,0.57613623,3821.4,3820.3,2.61759]
[1733336934885,0.55,3821.4,3820.3,2.61759]
[1733336935067,0.55,3821.4,3820.4,2.879269]
[1733336935691,0.55,3821.4,3820.4,0.261759]
[1733336936011,0.55,3821.4,3820.1,2.6177]
[1733336936012,0.02613623,3821.3,3820.1,2.6177]
[1733336936183,0.02613623,3821.3,3819.9,1.5055]
[1733336936374,0.02613623,3821.3,3819.7,3.5261147]
[1733336936375,1.5416,3821.0,3819.7,0.5261147]
[1733336936923,0.02613623,3820.9,3819.6,2.61801]
[1733336937219,0.55,3820.7,3819.4,4.2798]
[1733336937417,0.55,3820.5,3819.0,1.92691088]
[1733336937570,0.55,3820.5,3819.2,2.61834]
[1733336938090,2.01509862,3820.6,3819.5,2.61813]
[1733336938408,1.5416,3820.6,3819.5,2.61813]
[1733336938785,0.02613623,3820.5,3819.0,4.28004]
[1733336938998,1.5416,3820.6,3819.4,2.61817]
[1733336939809,1.56773623,3820.6,3819.4,2.61817]
[1733336940183,1.5416,3820.6,3819.1,2.61841]
[1733336940383,1.5416,3820.6,3819.4,2.61816]
[1733336940384,1.56773623,3820.6,3819.4,2.61816]
[1733336940588,1.39990835,3820.6,3819.8,2.61787]
[1733336940910,1.39990835,3820.6,3819.7,1.6594]
[1733336941584,5.27418623,3821.8,3819.7,1.6594]
[1733336941794,0.51293059,3821.5,3820.3,2.61755]
[1733336942286,0.94825642,3821.7,3819.8,0.16594]
[1733336942483,0.52350756,3821.8,3820.6,2.61734]
[1733336942922,0.55,3821.7,3820.6,2.61734]
[1733336943423,0.55,3821.8,3820.3,0.02617243]
[1733336943588,1.6589,3822.0,3820.9,2.61714]
[1733336943785,1.6589,3822.0,3821.0,2.61707]
[1733336944332,1.6589,3822.0,3820.8,2.61724]
[1733336944485,0.02613623,3821.9,3820.8,0.26434102]
[1733336944683,1.6589,3821.8,3820.7,2.61731]
[1733336944996,0.02613623,3821.7,3820.7,2.61731]
[1733336945527,1.68503623,3821.8,3820.7,2.61731]
[1733336946025,1.68503623,3821.8,3820.7,2.61728]
[1733336946222,1.68503623,3821.8,3820.7,2.90502271]
[1733336947493,0.55,3821.7,3820.1,1.555]
[1733336947689,1.5255,3821.2,3819.7,1.5212]
[1733336947923,0.02613623,3821.1,3819.7,1.5212]
[1733336948090,1.5255,3821.2,3819.8,0.19211428]
[1733336948286,1.5255,3821.2,3820.7,2.61725]
[1733336948510,1.5255,3821.2,3819.9,2.61786]
[1733336948716,0.02613623,3821.1,3820.3,2.61758]
[1733336948921,1.5255,3821.2,3820.0,0.4305]
[1733336949297,1.5255,3821.2,3820.2,2.6176]
[1733336949534,1.5255,3821.2,3820.3,2.61757]
[1733336949822,1.5255,3821.2,3820.5,2.61745]
[1733336950866,1.5255,3821.2,3820.0,3.04825]
[1733336951022,1.5255,3821.2,3820.4,2.61752]
[1733336951556,0.02613623,3821.1,3820.4,2.61752]
[1733336951727,0.02613623,3821.1,3820.2,2.61764]
[1733336952055,1.5255,3821.2,3820.3,2.61757]
[1733336952245,0.02613623,3821.1,3820.3,2.61757]
[1733336952447,1.5255,3821.2,3820.4,2.61751]
[1733336952655,1.5255,3821.2,3820.1,0.3744364]
[1733336952855,1.5255,3821.2,3820.2,2.95989464]
[1733336953060,1.5255,3821.2,3820.3,2.61756]
[1733336953627,1.5255,3821.2,3820.6,2.61738]
[1733336953999,1.5255,3821.2,3820.5,2.61739]
[1733336954329,1.5255,3821.2,3820.6,2.61733]
[1733336954534,1.5255,3821.2,3820.7,2.879053]
[1733336954845,1.5255,3821.2,3820.7,0.261733]
[1733336955034,1.5255,3821.2,3820.7,2.879043]
[1733336955647,1.5255,3821.2,3820.9,2.61714]
[1733336955870,1.5255,3821.2,3820.7,0.261733]
[1733336955871,1.5255,3821.2,3820.7,2.879033]
[1733336956651,1.51328758,3821.2,3820.7,2.879033]
[1733336957524,0.02613623,3821.1,3820.3,1.533]
[1733336957736,1.51328758,3821.2,3820.3,2.61753]
[1733336957942,1.51328758,3821.2,3820.0,2.6178]
[1733336958166,1.51328758,3821.2,3820.2,2.6176]
[1733336958474,1.51328758,3821.2,3820.3,2.61758]
[1733336959736,1.51328758,3821.2,3820.4,2.61751]
[1733336960699,1.51328758,3821.2,3819.9,2.61786]
[1733336960974,1.51328758,3821.2,3820.2,2.6176]
[1733336961177,1.51328758,3821.2,3820.3,2.61759]
[1733336961939,1.51328758,3821.2,3820.0,3.07022962]
[1733336962273,1.51328758,3821.2,3820.5,2.61743]
[1733336962575,1.51328758,3821.2,3820.3,2.61758]
[1733336963385,1.51328758,3821.2,3820.4,2.6175]
[1733336963893,1.51328758,3821.2,3820.3,0.56878096]
[1733336964053,1.51328758,3821.2,3820.8,2.61722]
[1733336964254,1.51328758,3821.2,3820.2,2.61766]
[1733336964446,1.51328758,3821.2,3820.5,2.6174]
[1733336965598,1.51328758,3821.2,3820.0,0.45247962]
[1733336965789,1.53942381,3821.2,3820.2,2.61764]
[1733336965961,1.51328758,3821.2,3820.4,2.6175]
[1733336966161,0.02613623,3821.1,3820.4,2.6175]
[1733336966986,1.51328758,3821.2,3820.4,2.6175]
[1733336967493,1.51328758,3821.2,3820.4,2.61749]
[1733336969620,1.51328758,3821.2,3820.5,2.61745]
[1733336969824,1.51328758,3821.2,3820.5,2.9098962]
[1733336970224,1.51328758,3821.2,3820.0,3.07022962]
[1733336970225,1.525,3821.0,3820.0,0.45247962]
[1733336970437,0.57613623,3820.9,3820.0,2.6178]
[1733336970729,0.57613623,3820.9,3819.6,2.73870103]
[1733336970730,0.57613623,3820.9,3819.7,2.618]
[1733336970731,0.55,3820.9,3819.7,2.618]
[1733336971143,0.55,3820.9,3820.1,2.61768]
[1733336973051,0.02613623,3820.8,3820.1,2.61768]
[1733336973221,0.55,3820.9,3820.1,2.61768]
[1733336973861,0.55,3820.9,3819.5,2.74231116]
[1733336973862,0.55,3820.1,3819.5,2.74231116]
[1733336974020,0.55,3820.1,3818.5,2.74231116]
[1733336974021,0.55,3819.7,3818.5,2.74231116]
[1733336974226,0.55,3819.4,3818.3,5.36126116]
[1733336974553,0.02613623,3819.3,3818.4,0.53612612]
[1733336974863,0.02613623,3819.3,3818.4,2.61889]
[1733336975158,1.6595,3819.2,3817.8,2.74231116]
[1733336975371,1.6595,3819.2,3817.3,1.5924]
[1733336975372,0.55,3818.9,3818.0,2.61916]
[1733336975660,0.02613623,3818.8,3818.0,0.53614712]
[1733336975957,0.55,3818.6,3817.3,1.5924]
[1733336976165,0.02613623,3818.5,3817.3,1.5924]
[1733336976351,0.55,3818.6,3817.3,1.5924]
[1733336976588,1.66483623,3818.7,3817.7,2.61934]
[1733336976759,1.66483623,3818.7,3817.7,2.881244]
[1733336977119,1.66483623,3818.7,3817.7,0.261934]
[1733336977346,0.02613623,3818.6,3817.8,2.6193]
[1733336978037,1.6387,3818.7,3817.8,2.6193]
[1733336979228,0.02613623,3818.6,3817.8,2.6193]
[1733336979429,0.02613623,3818.6,3817.8,2.9074234]
[1733336979635,0.02613623,3818.6,3817.8,2.8475234]
[1733336979929,0.02613623,3818.6,3817.9,2.61917]
[1733336980124,1.6387,3818.7,3817.9,2.61917]
[1733336981431,0.02613623,3818.6,3817.9,2.61917]
[1733336981763,1.6387,3818.7,3817.9,2.61917]
[1733336982059,1.6387,3818.7,3817.7,0.261934]
[1733336982438,1.6387,3818.7,3817.9,2.61921]
[1733336983430,1.6387,3818.7,3818.0,2.61915]
[1733336984266,1.85813699,3818.7,3818.1,2.61907]
[1733336984653,1.88427322,3818.7,3817.8,2.61924]
[1733336985676,0.57613623,3818.6,3817.8,2.61924]
[1733336986255,0.57613623,3818.6,3817.8,2.61927]
[1733336986458,1.6478,3818.5,3817.8,2.61927]
[1733336986683,0.02613623,3818.4,3817.8,2.61927]
[1733336986888,1.6478,3818.5,3817.2,2.61972]
[1733336987096,1.5774,3819.1,3818.4,2.61889]
[1733336988010,1.5774,3819.1,3818.8,2.61861]
[1733336988197,1.5774,3819.1,3818.3,2.61893]
[1733336988393,1.5774,3819.1,3818.7,2.61868]
[1733336988607,1.5774,3819.1,3817.9,2.61924]
[1733336988816,1.5774,3819.1,3819.0,2.61848]
[1733336989020,2.6176,3820.3,3819.1,2.61841]
[1733336989182,1.6292,3820.2,3819.1,2.61841]
[1733336989384,1.58613623,3820.1,3819.1,2.61841]
[1733336989917,0.51805735,3820.0,3819.1,2.61841]
[1733336990219,0.76041936,3819.9,3818.9,2.61853]
[1733336990445,0.55,3819.7,3818.9,2.61853]
[1733336990722,0.55,3819.3,3817.8,1.5612]
[1733336990941,0.02613623,3819.2,3818.5,2.61876]
[1733336991284,0.02613623,3819.2,3817.8,1.5612]
[1733336991285,0.02613623,3819.2,3817.8,4.18045]
[1733336991508,1.6037,3819.1,3817.8,1.5612]
[1733336991696,1.6037,3819.1,3818.5,2.61881]
[1733336992230,0.02613623,3819.0,3818.3,2.61896]
[1733336992519,0.02613623,3819.0,3818.5,2.61882]
[1733336992718,1.6037,3819.1,3818.5,2.61882]
[1733336993502,0.02613623,3819.0,3818.2,2.61897]
[1733336994032,0.18911985,3819.0,3818.0,2.61915]
[1733336994700,0.18911985,3819.0,3818.1,2.61909]
[1733336995529,1.6242,3818.9,3818.0,2.61916]
[1733336995724,0.02613623,3818.8,3817.5,1.5269]
[1733336995931,0.02613623,3818.8,3818.1,2.61909]
[1733336996090,1.6242,3818.9,3818.1,2.61909]
[1733336996422,1.6242,3818.9,3817.8,2.6193]
[1733336996637,1.6242,3818.9,3818.1,2.61907]
[1733336997098,1.6242,3818.9,3818.2,2.61903]
[1733336997299,1.6242,3818.9,3817.7,2.61937]
[1733336997526,1.6242,3818.9,3818.1,2.61908]
[1733336997728,1.6242,3818.9,3817.8,0.43257032]
[1733336998032,1.6242,3818.9,3818.3,2.61895]
[1733336998185,1.6242,3818.9,3818.0,2.61916]
[1733336998392,1.6242,3818.9,3818.1,0.30517303]
[1733336998591,1.6242,3818.9,3818.4,2.61883]
[1733336998789,1.6242,3818.9,3818.8,2.61862]
[1733336999096,2.61774,3820.1,3819.0,2.61847]
[1733336999097,1.60233623,3820.0,3819.0,2.61847]
[1733336999304,4.22014623,3820.0,3818.5,2.61882]
[1733336999499,0.42201462,3819.9,3818.9,2.61855]
[1733336999739,0.02613623,3819.8,3818.9,2.61855]
[1733336999895,2.10946837,3820.0,3818.9,2.61855]
[1733337000232,0.02613623,3819.9,3818.9,2.61848]
[1733337000438,0.02613623,3819.9,3818.6,0.261882]
[1733337000641,0.02613623,3819.9,3819.1,2.61835]
[1733337000844,1.5762,3820.0,3819.1,2.61835]
[1733337001246,0.02613623,3819.9,3819.1,2.61835]
[1733337001656,1.5762,3820.0,3819.1,0.261835]
[1733337001948,1.5762,3820.0,3818.8,2.61862]
[1733337002106,1.5762,3820.0,3819.2,2.61834]
[1733337002302,0.02613623,3819.9,3819.2,2.61834]
[1733337002706,1.5762,3820.0,3819.2,2.61834]
[1733337003157,1.5762,3820.0,3818.6,0.261882]
[1733337003354,1.6659,3819.8,3818.6,0.261882]
[1733337003577,2.61816,3819.5,3818.6,0.261882]
[1733337003773,1.6659,3819.2,3817.8,4.26365]
[1733337006163,3.13037965,3819.2,3818.0,2.61914]
[1733337006473,3.13037965,3819.2,3818.2,2.61901]
[1733337006474,0.51202965,3819.2,3818.2,2.61901]
[1733337006719,3.0,3819.8,3817.3,2.6458376]
[1733337006720,3.0,3819.8,3817.4,2.61958]
[1733337006875,2.61773,3820.1,3818.9,2.61855]
[1733337007184,2.61745,3820.6,3818.4,1.5361]
[1733337007185,1.08617819,3820.6,3818.4,1.5361]
[1733337007476,2.43869804,3820.7,3819.0,2.61847]
[1733337007676,5.58862571,3820.7,3819.0,2.61847]
[1733337007984,2.6178,3820.0,3818.7,2.61865]
[1733337008178,2.61745,3820.5,3818.4,1.5361]
[1733337008486,1.5272,3819.9,3818.5,2.61877]
[1733337008637,1.5272,3819.9,3818.8,2.6186]
[1733337008978,1.5272,3819.9,3818.6,0.415487]
[1733337008979,1.5272,3819.9,3819.1,2.61839]
[1733337009191,1.5272,3819.9,3818.8,1.6221]
[1733337009333,1.5272,3819.9,3818.8,4.2407]
[1733337009539,1.5272,3819.9,3818.9,0.42407]
[1733337010186,1.5272,3819.9,3819.0,2.61844]
[1733337010354,1.5272,3819.9,3818.4,2.61885]
[1733337010564,1.5272,3819.9,3818.8,2.61861]
[1733337010766,1.5272,3819.9,3818.8,2.55831]
[1733337011386,1.5272,3819.9,3818.3,1.6284]
[1733337011589,1.5272,3819.9,3819.1,2.6184]
[1733337012097,1.5272,3819.9,3818.6,2.6187]
[1733337012572,1.5272,3819.9,3819.1,2.61838]
[1733337012905,1.5272,3819.9,3819.1,2.61835]
[1733337013058,1.5272,3819.9,3818.4,0.16284]
[1733337013059,1.5272,3819.9,3819.0,2.61845]
[1733337013258,1.5272,3819.9,3819.0,0.261845]
[1733337013567,1.5272,3819.9,3818.4,0.16284]
[1733337013763,1.5272,3819.9,3819.3,2.61826]
[1733337014095,1.5272,3819.9,3818.4,0.42320135]
[1733337014255,1.5272,3819.9,3819.2,2.61833]
[1733337014650,0.55,3819.8,3818.4,0.42320135]
[1733337014868,0.55,3819.8,3819.2,2.61828]
[1733337015086,0.55,3819.8,3819.3,2.61825]
[1733337015399,0.55,3819.8,3819.1,2.6184]
[1733337015694,0.55,3819.8,3819.2,2.61834]
[1733337015892,0.55,3819.8,3819.3,0.261834]
[1733337016105,0.55,3819.8,3818.6,2.61876]
[1733337016456,0.53802286,3819.8,3819.2,2.61829]
[1733337016792,0.53802286,3819.8,3819.3,2.61826]
[1733337016992,0.53802286,3819.8,3819.1,2.6184]
[1733337017150,0.53802286,3819.8,3819.2,2.61832]
[1733337017977,0.53802286,3819.8,3819.1,2.61841]
[1733337018380,0.74454515,3819.8,3818.5,0.20516014]
[1733337018568,0.74454515,3819.8,3818.0,2.72890135]
[1733337018569,1.5148,3819.5,3818.0,1.5237]
[1733337018757,0.20652229,3819.8,3818.0,1.5237]
[1733337018758,0.55,3819.2,3818.0,2.61911]
[1733337019088,0.55,3819.0,3818.0,2.61911]
[1733337019293,1.5148,3818.9,3817.6,1.5237]
[1733337019509,4.24733729,3819.6,3817.7,2.6193]
[1733337019510,0.55,3818.8,3817.7,2.6193]
[1733337019661,5.06347086,3819.3,3818.4,2.61883]
[1733337019662,0.55,3818.6,3818.4,2.61883]
[1733337019862,1.6317,3818.7,3817.8,0.26193]
[1733337019863,1.6317,3818.7,3818.2,2.61897]
[1733337020085,1.6317,3818.7,3818.0,2.61915]
[1733337020456,1.6317,3818.7,3818.1,2.61908]
[1733337020665,1.6317,3818.7,3817.8,0.26193]
[1733337020871,1.6317,3818.7,3818.1,2.61909]
[1733337021297,1.6317,3818.7,3817.9,2.61919]
[1733337021517,1.62926729,3819.7,3818.6,2.61876]
[1733337021518,1.6257,3819.6,3818.6,2.61876]
[1733337021729,0.55,3819.5,3817.7,1.508]
[1733337021904,0.55,3819.5,3818.8,2.6186]
[1733337022063,1.6257,3819.6,3819.2,2.61833]
[1733337022687,1.6257,3819.6,3819.3,2.61827]
[1733337022960,1.6257,3819.6,3819.1,2.61835]
[1733337023159,1.6257,3819.6,3818.9,2.61854]
[1733337023368,1.78827,3819.6,3818.0,1.508]
[1733337023596,1.6257,3819.3,3818.2,2.61903]
[1733337023894,1.6257,3819.2,3818.2,2.61903]
[1733337024099,0.55,3819.1,3818.2,2.61903]
[1733337024397,0.55,3819.1,3817.8,0.1508]
[1733337024398,0.76757,3819.1,3817.9,2.61924]
[1733337024703,2.61853,3819.0,3817.8,2.7701]
[1733337024913,1.6013,3818.8,3817.8,2.6193]
[1733337025205,0.55,3818.7,3817.8,2.6193]
[1733337025517,0.55,3818.5,3817.7,2.61931]
[1733337025885,0.55,3818.3,3817.3,2.61965]
[1733337026089,0.55,3818.3,3817.0,0.1639451]
[1733337026090,1.631,3818.2,3817.0,2.7837551]
[1733337026385,1.084989,3818.3,3817.0,0.1639451]
[1733337026386,0.55,3817.7,3817.0,0.1639451]
[1733337027720,0.55,3817.7,3817.1,2.61972]
[1733337028229,0.55,3817.7,3817.0,0.1639451]
[1733337028432,0.55,3817.7,3817.2,2.61971]
[1733337028718,0.55,3817.7,3817.2,2.61965]
[1733337029085,0.55,3817.7,3817.0,0.1639451]
[1733337029444,1.6073,3817.8,3817.0,0.44233361]
[1733337029599,1.6073,3817.8,3817.4,2.61952]
[1733337030145,1.6073,3817.8,3817.0,0.44233361]
[1733337030588,1.6073,3817.8,3817.0,0.1639451]
[1733337030785,1.6073,3817.8,3817.3,2.61964]
[1733337031083,1.6073,3817.8,3817.0,0.1639451]
[1733337031393,1.6073,3817.8,3817.2,2.61968]
[1733337031581,1.6073,3817.8,3817.0,0.1639451]
[1733337031785,1.6073,3817.8,3817.4,2.61957]
[1733337032496,1.6073,3817.8,3817.0,0.1639451]
[1733337032795,4.24786729,3818.9,3817.8,2.61925]
[1733337032796,2.1445,3818.7,3817.8,2.61925]
[1733337033500,2.65976026,3818.7,3817.8,2.61925]
[1733337033835,2.1445,3818.7,3817.4,0.02619309]
[1733337034019,2.1445,3818.7,3817.5,0.15508931]
[1733337034199,0.55,3818.5,3817.7,2.61936]
[1733337034394,0.55,3818.1,3817.0,0.1639451]
[1733337034640,1.5276,3817.8,3817.0,2.7837951]